fUSD/lending_fUSD_20260309
["ID","MTS","AMOUNT","RATE_DAILY","PERIOD"]
[408010068,1773021040686,-250.45472089,0.00018892,2]
[408010069,1773021040696,-168.0,0.00018905,2]
[408010070,1773021040707,-170.06448864,0.00018912,2]
[408010071,1773021040718,-152.0,0.00018924,6]
[408010072,1773021040727,-1206.0,0.00018932,2]
[408010073,1773021040737,-1253.73,0.00018969,2]
[408010074,1773021040746,-19001.61387048,0.00019,2]
[408010075,1773021040756,-663.32,0.00019001,2]
[408010076,1773021040765,-3292.0,0.00019029,2]
[408010077,1773021040774,-350.0,0.00019079,2]
[408010078,1773021040783,-195.79,0.00019087,2]
[408010079,1773021040792,-4690.4525379,0.000191,2]
[408010080,1773021040801,-1435.74,0.00019103,2]
[408010081,1773021040811,-349.8,0.00019109,2]
[408010082,1773021040820,-600.0,0.00019178,7]
[408010083,1773021040831,-1700.0,0.00019178,7]
[408010084,1773021040841,-1400.0,0.00019178,7]
[408010085,1773021040850,-1000.0,0.00019178,2]
[408010086,1773021040859,-172.82949155,0.00019185,2]
[408010087,1773021040868,-160.0,0.00019185,2]
[408010088,1773021040878,-2000.0,0.000192,2]
[408010089,1773021040887,-168.0,0.00019212,2]
[408010090,1773021040897,-1206.0,0.0001922,2]
[408010091,1773021040906,-1206.0,0.00019222,2]
[408010092,1773021040915,-168.0,0.0001923,2]
[408010093,1773021040925,-350.0,0.00019235,2]
[408010094,1773021040935,-1253.72,0.00019254,2]
[408010095,1773021040945,-4643.63597954,0.00019278,2]
[408010096,1773021040955,-152.0,0.00019278,7]
[408010097,1773021040965,-356.5,0.00019309,2]
[408010098,1773021040974,-151.0,0.00019357,2]
[408010099,1773021040983,-2834.0,0.0001936,2]
[408010100,1773021040994,-161.0,0.0001936,2]
[408010101,1773021041005,-847.0,0.0001936,2]
[408010102,1773021041016,-240.26576011,0.00019366,2]
[408010103,1773021041026,-356.5,0.00019372,2]
[408010104,1773021041037,-5452.1557,0.000194,2]
[408010105,1773021041047,-2300.0,0.000194,7]
[408010106,1773021041058,-195.79,0.00019426,2]
[408010107,1773021041068,-356.5,0.00019435,2]
[408010108,1773021041078,-1252.0,0.00019435,2]
[408010109,1773021041089,-1000.0,0.00019452,2]
[408010110,1773021041098,-153.33762345,0.00019497,2]
[408010111,1773021041106,-356.5,0.00019497,2]
[408010112,1773021041116,-241.92,0.000195,2]
[408010113,1773021041125,-400.0,0.000195,7]
[408010114,1773021041135,-500.0,0.00019507,2]
[408010115,1773021041145,-500.0,0.00019507,2]
[408010116,1773021041155,-500.0,0.00019507,2]
[408010117,1773021041165,-150.0,0.00019507,2]
[408010118,1773021041177,-150.0,0.00019507,2]
[408010119,1773021041186,-500.0,0.00019507,2]
[408010120,1773021041195,-150.0,0.00019507,2]
[408010121,1773021041206,-168.0,0.00019524,2]
[408010122,1773021041218,-356.5,0.0001956,2]
[408010123,1773021041227,-500.0,0.00019562,2]
[408010124,1773021041238,-500.0,0.00019562,2]
[408010125,1773021041247,-500.0,0.00019562,2]
[408010126,1773021041256,-205.74072423,0.00019562,2]
[408010127,1773021041266,-150.0,0.00019562,2]
[408010128,1773021041275,-500.0,0.00019562,2]
[408010129,1773021041285,-150.0,0.00019562,2]
[408010130,1773021041295,-1500.0,0.000196,2]
[408010131,1773021041304,-2473.41,0.000196,2]
[408010132,1773021041314,-448.17,0.000196,2]
[408010133,1773021041512,-425.32611708,0.000196,2]
[408010134,1773021041522,-1500.0,0.000196,2]
[408010135,1773021041531,-1500.0,0.000196,2]
[408010136,1773021041540,-1500.0,0.000196,2]
[408010137,1773021041549,-400.0,0.000196,7]
[408010138,1773021041558,-500.0,0.00019609,2]
[408010139,1773021041567,-150.0,0.00019616,2]
[408010140,1773021041576,-500.0,0.00019616,2]
[408010141,1773021041585,-500.0,0.00019616,2]
[408010142,1773021041595,-150.0,0.00019616,2]
[408010143,1773021041604,-500.0,0.00019616,2]
[408010144,1773021041613,-500.0,0.00019616,2]
[408010145,1773021041622,-150.0,0.00019616,2]
[408010146,1773021041631,-500.0,0.00019616,2]
[408010147,1773021041640,-500.0,0.00019616,2]
[408010148,1773021041649,-150.0,0.00019616,2]
[408010149,1773021041659,-150.0,0.00019616,2]
[408010150,1773021041668,-150.0,0.00019616,2]
[408010151,1773021041677,-500.0,0.00019616,2]
[408010152,1773021041686,-150.0,0.00019616,2]
[408010153,1773021041694,-150.0,0.00019616,2]
[408010154,1773021041703,-150.0,0.00019616,2]
[408010155,1773021041712,-150.0,0.00019616,2]
[408010156,1773021041721,-354.25959733,0.00019617,2]
[408010157,1773021041730,-511.4784502,0.00019617,2]
[408010158,1773021041739,-511.85670277,0.00019617,2]
[408010159,1773021041748,-150.58067844,0.00019617,2]
[408010160,1773021041757,-509.59431566,0.00019617,2]
[408010161,1773021041766,-209.72265383,0.00019617,2]
[408010162,1773021041775,-356.5,0.00019623,2]
[408010163,1773021041784,-152.0,0.00019632,8]
[408010164,1773021041793,-353.89763772,0.00019646,2]
[408010165,1773021041801,-150.0,0.00019671,2]
[408010166,1773021041810,-500.0,0.00019671,2]
[408010167,1773021041819,-501.82767376,0.00019671,2]
[408010168,1773021041829,-150.0,0.00019671,2]
[408010169,1773021041838,-500.0,0.00019671,2]
[408010170,1773021041847,-500.0,0.00019671,2]
[408010171,1773021041858,-150.0,0.00019671,2]
[408010172,1773021041866,-500.0,0.00019671,2]
[408010173,1773021041875,-500.0,0.00019671,2]
[408010174,1773021041884,-150.0,0.00019671,2]
[408010175,1773021041893,-150.0,0.00019671,2]
[408010176,1773021041902,-150.0,0.00019671,2]
[408010177,1773021041911,-500.0,0.00019671,2]
[408010178,1773021041920,-150.0,0.00019671,2]
[408010179,1773021041930,-150.0,0.00019671,2]
[408010180,1773021041939,-167.01402663,0.00019671,2]
[408010181,1773021041949,-150.0,0.00019671,2]
[408010182,1773021041958,-500.0,0.00019671,2]
[408010183,1773021041967,-150.0,0.00019671,2]
[408010184,1773021041976,-2805.0,0.0001968,2]
[408010185,1773021041986,-502.0,0.00019681,4]
[408010186,1773021041996,-356.5,0.00019686,2]
[408010187,1773021042005,-1832.98826504,0.000197,2]
[408010188,1773021042014,-400.0,0.000197,7]
[408010189,1773021042023,-150.0,0.00019726,2]
[408010190,1773021042031,-500.0,0.00019726,2]
[408010191,1773021042042,-150.0,0.00019726,2]
[408010192,1773021042051,-500.0,0.00019726,2]
[408010193,1773021042060,-502.75697176,0.00019726,2]
[408010194,1773021042069,-250.0,0.00019726,2]
[408010195,1773021042079,-252.59725118,0.00019726,2]
[408010196,1773021042089,-277.09096331,0.00019726,2]
[408010197,1773021042100,-235.50154825,0.00019726,2]
[408010198,1773021042110,-232.79888752,0.00019726,2]
[408010199,1773021042120,-152.96458514,0.00019726,2]
[408010200,1773021042130,-500.0,0.00019726,2]
[408010201,1773021042139,-250.67426717,0.00019726,2]
[408010202,1773021042149,-150.0,0.00019726,2]
[408010203,1773021042158,-150.0,0.00019726,2]
[408010204,1773021042167,-618.09099825,0.00019726,2]
[408010205,1773021042177,-200.0,0.00019726,2]
[408010206,1773021042187,-1000.0,0.00019726,2]
[408010207,1773021042197,-356.5,0.00019749,2]
[408010208,1773021042207,-195.79,0.00019765,2]
[408010209,1773021042218,-500.0,0.00019773,2]
[408010210,1773021042227,-500.0,0.00019773,2]
[408010211,1773021042237,-500.0,0.00019773,2]
[408010212,1773021042247,-150.0,0.0001978,2]
[408010213,1773021042257,-500.0,0.0001978,2]
[408010214,1773021042266,-202.34824749,0.0001978,2]
[408010215,1773021042275,-500.0,0.0001978,2]
[408010216,1773021042286,-500.0,0.0001978,2]
[408010217,1773021042296,-194.64589217,0.0001978,2]
[408010218,1773021042306,-150.0,0.0001978,2]
[408010219,1773021042315,-168.0,0.0001979,2]
[408010220,1773021042325,-168.0,0.00019791,2]
[408010221,1773021042334,-32927.6463,0.000198,2]
[408010222,1773021042343,-1000.0,0.000198,2]
[408010223,1773021042352,-400.0,0.000198,7]
[408010224,1773021042361,-135663.30791463,0.0001981,2]
[408010225,1773021042375,-356.5,0.00019812,2]
[408010226,1773021042384,-150.0,0.00019835,2]
[408010227,1773021042393,-280.93851437,0.00019835,2]
[408010228,1773021042403,-500.0,0.00019835,2]
[408010229,1773021042413,-190.06683403,0.00019835,2]
[408010230,1773021042422,-256.44664571,0.00019835,2]
[408010231,1773021042432,-151.9746972,0.00019839,2]
[408010232,1773021042442,-200.0,0.0001984,2]
[408010233,1773021042451,-150.0,0.00019843,2]
[408010234,1773021042460,-150.0,0.00019873,2]
[408010235,1773021042469,-356.5,0.00019874,2]
[408010236,1773021042480,-151.78439564,0.0001989,2]
[408010237,1773021042489,-394.63500113,0.0001989,2]
[408010238,1773021042500,-25000.0,0.00019891,3]
[408010239,1773021042509,-500.0,0.00019899,2]
[408010240,1773021042518,-153.84453769,0.000199,5]
[408010241,1773021042528,-296.08569084,0.000199,3]
[408010242,1773021042539,-232.60341977,0.000199,2]
[408010243,1773021042550,-2000.0,0.000199,2]
[408010244,1773021042559,-2000.0,0.000199,2]
[408010245,1773021042568,-25000.0,0.000199,3]
[408010246,1773021042577,-920.0,0.000199,7]
[408010247,1773021042587,-355.49420307,0.000199,2]
[408010248,1773021042596,-4643.63597954,0.000199,2]
[408010249,1773021042605,-4690.4525379,0.000199,2]
[408010250,1773021042614,-1889.75167277,0.000199,2]
[408010251,1773021042623,-3417.0,0.000199,2]
[408010252,1773021042632,-152.8085332,0.00019927,2]
[408010253,1773021042641,-356.5,0.00019937,2]
[408010254,1773021042650,-150.0,0.00019973,2]
[408010255,1773021042659,-1170.2899346,0.00019973,2]
[408010256,1773021042668,-150.938,0.00019979,2]
[408010257,1773021042677,-656.0,0.00019982,2]
[408010258,1773021042686,-150.0,0.00019982,2]
[408010259,1773021042694,-150.0,0.00019982,2]
[408010260,1773021042716,-150.0,0.00019982,2]
[408010261,1773021042732,-150.0,0.00019982,2]
[408010262,1773021042750,-150.0,0.00019982,2]
[408010263,1773021042769,-150.0,0.00019982,2]
[408010264,1773021042785,-211.0,0.00019982,2]
[408010265,1773021042803,-3392.3451347,0.00019985,2]
[408010267,1773021042824,-152.0,0.00019986,9]
[408010268,1773021042843,-151.0,0.00019997,2]
[408010269,1773021042862,-6147.0630914,0.00019998,2]
[408010270,1773021042881,-28914.7024478,0.00019998,2]
[408010271,1773021042897,-310.6853941,0.00019999,2]
[408010272,1773021042911,-300.0,0.00019999,2]
[408010273,1773021042930,-330.24158946,0.00019999,2]
[408010274,1773021042942,-501.25501866,0.00019999,2]
[408010275,1773021042960,-294.75283121,0.00019999,2]
[408010276,1773021042974,-500.0,0.00019999,2]
[408010277,1773021042989,-500.0,0.00019999,2]
[408010278,1773021043004,-627.94808616,0.00019999,2]
[408010279,1773021043019,-298.84544584,0.00019999,2]
[408010281,1773021043033,-2423.0,0.0002,2]
[408010284,1773021043056,-187.17574594,0.0002,2]
[408010285,1773021043071,-372599.05584973,0.0002,2]
[408010286,1773021043087,-209.56,0.0002,2]
[408010288,1773021043102,-150.0,0.0002,2]
[408010289,1773021043117,-33167.84923756,0.0002,2]
[408010290,1773021043132,-522378.66315088,0.0002,2]
[408010291,1773021043155,-1620.50653197,0.0002,2]
[408010292,1773021043175,-2093.25847665,0.0002,2]
[408010293,1773021043196,-674.31697664,0.0002,2]
[408010294,1773021043490,-851250.72974442,0.0002,2]
[408010295,1773021043507,-296.2963,0.0002,2]
[408010296,1773021043522,-296.2963,0.0002,2]
[408010297,1773021043536,-296.2963,0.0002,2]
[408010298,1773021043551,-296.29629,0.0002,2]
[408010299,1773021043567,-2050.0,0.0002,2]
[408010300,1773021043582,-4812.3436851,0.0002,3]
[408010301,1773021043600,-199148.90814778,0.0002,2]
[408010302,1773021043615,-226401.96520415,0.0002,2]
[408010303,1773021043630,-1331237.70757625,0.0002,2]
[408010304,1773021043645,-764023.03902211,0.0002,2]
[408010305,1773021043669,-712.55427852,0.0002,2]
[408010306,1773021043699,-2500.00000006,0.0002,2]
[408010307,1773021044115,-276.29914772,0.00014298,2]
[408010308,1773021044158,-8144.55783952,0.00014298,2]
[408010311,1773021046864,-6773.1482045,0.00014298,2]
[408010312,1773021046875,-860.08,0.00015471,2]
[408010313,1773021046884,-250.0,0.00019765,2]
[408010314,1773021046893,-250.0,0.0001981,2]
[408010315,1773021046902,-250.0,0.00019836,2]
[408010316,1773021046911,-250.0,0.00019873,2]
[408010317,1773021046920,-250.0,0.000199,2]
[408010318,1773021046931,-250.0,0.00019917,2]
[408010319,1773021046940,-250.0,0.00019958,2]
[408010320,1773021046948,-250.0,0.0001998,2]
[408010321,1773021046957,-66978.94188318,0.0002,2]
[408010322,1773021046968,-682.5,0.0002,2]
[408010323,1773021139268,783.75832895,8e-05,2]
[408010324,1773021140019,500.0,8e-05,2]
[408010325,1773021140258,500.0,8e-05,2]
[408010326,1773021140474,500.0,8e-05,2]
[408010327,1773021140708,912.29870383,8e-05,2]
[408010328,1773021147695,500.0,8e-05,2]
[408010329,1773021147773,500.0,8e-05,2]
[408010330,1773021148182,500.0,8e-05,2]
[408010331,1773021148281,500.0,8e-05,2]
[408010332,1773021148764,500.0,8e-05,2]
[408010333,1773021148803,500.0,8e-05,2]
[408010334,1773021149140,500.0,8e-05,2]
[408010335,1773021149294,500.0,8e-05,2]
[408010336,1773021149626,500.0,8e-05,2]
[408010337,1773021149778,500.0,8e-05,2]
[408010338,1773021150103,965.43684842,8e-05,2]
[408010339,1773021150286,500.0,8e-05,2]
[408010340,1773021150787,338.5161188,8e-05,2]
[408010341,1773021150810,527.67366024,8e-05,2]
[408010342,1773021188107,6107.222532,7.945e-05,2]
[408010345,1773021430847,1872.92627792,0.00013,7]
[408010346,1773021440031,500.0,8e-05,2]
[408010347,1773021440548,500.0,8e-05,2]
[408010348,1773021441032,500.0,8e-05,2]
[408010349,1773021441547,500.0,8e-05,2]
[408010350,1773021442230,500.0,8e-05,2]
[408010351,1773021442719,500.0,8e-05,2]
[408010352,1773021443306,500.0,8e-05,2]
[408010353,1773021443744,500.0,8e-05,2]
[408010354,1773021444557,500.0,8e-05,2]
[408010355,1773021445263,500.0,8e-05,2]
[408010356,1773021595629,5000.01,0.0001199,2]
[408010357,1773021595651,10000.01,0.0001199,2]
[408010358,1773021595672,10000.01,0.0001199,2]
[408010359,1773021595693,10000.01,0.0001199,2]
[408010360,1773021595715,10000.01,0.0001199,2]
[408010361,1773021595738,10000.01,0.0001199,2]
[408010362,1773021595760,10000.01,0.0001199,2]
[408010363,1773021595781,5760.11496876,0.0001199,2]
[408010364,1773021602427,4239.89503124,8e-05,2]
[408010365,1773021602449,2124.54881225,8e-05,2]
[408010366,1773021606258,9469.02272505,0.00011,2]
[408010370,1773021671963,205.0,9.8e-05,2]
[408010371,1773021675979,261.0174341,0.000101,2]
[408010372,1773021739039,393.21196266,7.888e-05,2]
[408010373,1773021746085,500.0,8e-05,2]
[408010374,1773021747295,500.0,8e-05,2]
[408010375,1773021748707,500.0,8e-05,2]
[408010376,1773021749625,700.0,8e-05,2]
[408010377,1773021750135,700.0,8e-05,2]
[408010378,1773021750595,700.0,8e-05,2]
[408010379,1773021751057,700.0,8e-05,2]
[408010380,1773021751532,700.0,8e-05,2]
[408010381,1773021752029,700.0,8e-05,2]
[408010382,1773021752504,700.0,8e-05,2]
[408010383,1773021752986,700.0,8e-05,2]
[408010384,1773021754142,700.0,8e-05,2]
[408010385,1773021754214,700.0,8e-05,2]
[408010386,1773021754424,640.78060324,8e-05,2]
[408010387,1773021754447,59.21939676,8e-05,2]
[408010388,1773021754895,700.0,8e-05,2]
[408010389,1773021755390,1086.79183585,8e-05,2]
[408010390,1773021847851,3714.85275566,0.00011503,2]
[408010392,1773021939807,-155.08197355,0.0001199,2]
[408010393,1773021939830,-151.0,0.0001199,2]
[408010394,1773021939854,-155.08197355,0.0001199,2]
[408010395,1773021939880,-38.8360529,0.0001199,2]
[408010396,1773021939970,-112.1639471,0.0001199,2]
[408010397,1773021939995,-177.0,0.0001199,3]
[408010398,1773021940019,-165.0,0.0001199,3]
[408010399,1773021965769,151.0,0.0001199,2]
[408010400,1773021966219,165.0,0.0001199,2]
[408010401,1773021966510,151.0,0.0001199,2]
[408010402,1773021968123,154.0,0.0001199,2]
[408010403,1773022007429,-163.32,0.00012557,2]
[408010404,1773022007449,-150.0,0.00012557,2]
[408010405,1773022007470,-97.08595871,0.00012557,2]
[408010406,1773022027060,165.0,0.0001199,2]
[408010409,1773022036987,500.0,8e-05,2]
[408010410,1773022043516,500.0,8e-05,2]
[408010411,1773022043998,500.0,8e-05,2]
[408010412,1773022044447,500.0,8e-05,2]
[408010413,1773022046644,500.0,8e-05,2]
[408010414,1773022046855,500.0,8e-05,2]
[408010415,1773022047165,500.0,8e-05,2]
[408010416,1773022047674,500.0,8e-05,2]
[408010417,1773022048184,500.0,8e-05,2]
[408010418,1773022048673,500.0,8e-05,2]
[408010419,1773022050487,500.0,8e-05,2]
[408010420,1773022056790,500.0,8e-05,2]
[408010421,1773022057293,500.0,8e-05,2]
[408010422,1773022057765,500.0,8e-05,2]
[408010423,1773022058272,565.43684842,8e-05,2]
[408010424,1773022091207,162.0,0.0001199,2]
[408010425,1773022098773,-4850.918822,0.00012494,2]
[408010426,1773022104752,-298.172356,0.00012494,2]
[408010427,1773022104779,-155.91404129,0.00012557,2]
[408010428,1773022104805,-184.96377306,0.00012793,2]
[408010429,1773022104831,-166.66,0.00012893,2]
[408010430,1773022104857,-1200.0,0.00012972,2]
[408010431,1773022104883,-300.0,0.00012972,2]
[408010432,1773022151116,-300.0,0.00012972,2]
[408010433,1773022151142,-300.0,0.00012972,2]
[408010434,1773022151163,-428.09964246,0.00012973,2]
[408010435,1773022187070,2201.25,6.628e-05,2]
[408010436,1773022187311,2201.25,6.977e-05,2]
[408010437,1773022187475,2201.25,7.326e-05,2]
[408010438,1773022187677,2201.25,7.675e-05,2]
[408010439,1773022187882,1195.01,8.024e-05,2]
[408010440,1773022187907,1006.24,8.024e-05,2]
[408010441,1773022188112,2201.25,8.373e-05,2]
[408010442,1773022188315,2201.25,8.721e-05,2]
[408010443,1773022188517,2201.25,9.07e-05,2]
[408010444,1773022188710,2201.25,9.419e-05,2]
[408010445,1773022188922,188.77,9.768e-05,2]
[408010446,1773022188947,2012.48,9.768e-05,2]
[408010447,1773022189143,2201.25,0.00010117,2]
[408010448,1773022189334,2201.25,0.00010466,2]
[408010449,1773022189542,2201.25,0.00010815,2]
[408010450,1773022189745,1383.78,0.00011163,2]
[408010451,1773022189781,45.8360529,0.00011163,2]
[408010452,1773022189809,232.80725127,0.00011163,2]
[408010453,1773022189837,267.19274873,0.00011163,2]
[408010454,1773022189863,271.6339471,0.00011163,2]
[408010455,1773022189940,59.90159936,0.00011512,2]
[408010456,1773022189970,274.0,0.00011512,2]
[408010457,1773022189996,1867.34840064,0.00011512,2]
[408010458,1773022190157,1542.88166913,0.00011861,2]
[408010459,1773022190184,658.36833087,0.00011861,2]
[408010460,1773022207780,157.0,0.0001199,2]
[408010461,1773022207845,157.0,0.0001199,2]
[408010462,1773022207906,910.18160123,7.945e-05,2]
[408010463,1773022207933,1506.76696777,7.945e-05,2]
[408010464,1773022208620,500.0,0.00011313,2]
[408010479,1773022232151,-928.83206182,0.0001221,2]
[408010482,1773022232169,-407.0,0.0001221,2]
[408010484,1773022232188,-295.99999997,0.0001221,2]
[408010485,1773022232212,-569.41793821,0.0001221,2]
[408010486,1773022232227,-5000.0,0.0001221,2]
[408010487,1773022232242,-250.0,0.0001221,2]
[408010488,1773022232266,-2201.25,0.00012559,2]
[408010489,1773022232282,-1005.32481536,0.00012572,2]
[408010490,1773022232298,-2201.25,0.00012908,2]
[408010491,1773022232314,-1200.0,0.00012972,2]
[408010492,1773022232330,-16343.01035754,0.00012973,2]
[408010493,1773022232345,-1695.82891803,0.00013,2]
[408010494,1773022232362,-210.41,0.00013032,2]
[408010495,1773022232378,-78511.0,0.000131,2]
[408010496,1773022232393,-166.66,0.00013164,2]
[408010497,1773022232409,-150.0,0.00013188,2]
[408010498,1773022232424,-2201.25,0.00013256,2]
[408010499,1773022232455,-365.84,0.0001328,2]
[408010500,1773022232476,-5533.0,0.000134,3]
[408010501,1773022232498,-250.0,0.00013431,2]
[408010502,1773022232518,-305.05958288,0.00013431,2]
[408010503,1773022232538,-5000.0,0.00013431,2]
[408010504,1773022232557,-166.66,0.00013436,2]
[408010505,1773022232575,-166.67,0.00013554,2]
[408010506,1773022232596,-9999.99,0.00013699,2]
[408010507,1773022232613,-89.85743214,0.00013699,2]
[408010509,1773022232636,-2388.57256786,0.00013699,2]
[408010511,1773022232652,-999.99,0.00013699,2]
[408010514,1773022232669,-1132.43345471,0.00013699,2]
[408010516,1773022232690,-8867.55654529,0.00013699,2]
[408010517,1773022232708,-150.99,0.00013699,2]
[408010518,1773022232725,-166.66,0.00013707,2]
[408010519,1773022232740,-477.26496131,0.00013743,2]
[408010520,1773022232758,-150.0,0.00013743,14]
[408010521,1773022232777,-5533.0,0.000138,5]
[408010522,1773022232794,-250.0,0.00013813,2]
[408010523,1773022232812,-8345.9,0.00013831,2]
[408010524,1773022232828,-2914.05281081,0.00013879,2]
[408010525,1773022232856,-10078.44371312,0.00013879,2]
[408010528,1773022238197,-682.1081486,0.00013879,2]
[408010529,1773022238207,-155.89907931,0.00013879,2]
[408010530,1773022238216,-151.0,0.00013879,2]
[408010531,1773022238226,-166.66,0.00013979,2]
[408010532,1773022238236,-178.58,0.00014,2]
[408010533,1773022238245,-200.0,0.00014047,2]
[408010534,1773022238255,-186.117,0.00014047,2]
[408010535,1773022238264,-143.99355968,0.00014047,2]
[408010536,1773022238322,-4159.4,0.00014047,2]
[408010537,1773022238357,-829.13244032,0.00014047,2]
[408010538,1773022238367,-166.66,0.0001425,2]
[408010539,1773022238377,-550.90297414,0.00014269,2]
[408010540,1773022238413,-1129.09702586,0.00014269,2]
[408010541,1773022238423,-250.0,0.00014269,2]
[408010542,1773022238432,-1013.70701028,0.00014269,2]
[408010543,1773022238442,-255.0,0.00014296,2]
[408010544,1773022238451,-166.67,0.000143,2]
[408010545,1773022238461,-178.58,0.00014339,2]
[408010546,1773022238471,-10373.49972572,0.0001439,2]
[408010547,1773022238480,-157.0,0.00014396,3]
[408010548,1773022238489,-500.0,0.00014398,2]
[408010549,1773022238499,-500.0,0.00014398,2]
[408010550,1773022238508,-500.0,0.00014398,2]
[408010551,1773022238518,-514.59328836,0.00014398,2]
[408010552,1773022238527,-500.0,0.00014398,2]
[408010553,1773022238537,-500.0,0.00014398,2]
[408010554,1773022238546,-13674.6046725,0.00014548,2]
[408010555,1773022238556,-500.0,0.000146,5]
[408010556,1773022238566,-200.0,0.000146,5]
[408010557,1773022238575,-178.58,0.00014678,2]
[408010558,1773022238585,-500.0,0.000147,5]
[408010559,1773022238596,-928.72719598,0.00014753,2]
[408010560,1773022238606,-1259.83444852,0.00014753,2]
[408010561,1773022238615,-800.0,0.000148,5]
[408010562,1773022238625,-500.0,0.0001482,2]
[408010563,1773022238634,-500.0,0.0001482,2]
[408010564,1773022238644,-500.0,0.0001482,2]
[408010565,1773022238654,-500.0,0.0001482,2]
[408010566,1773022238663,-500.0,0.0001482,2]
[408010567,1773022238673,-500.0,0.0001482,2]
[408010568,1773022238683,-500.0,0.0001482,2]
[408010569,1773022238692,-500.0,0.0001482,2]
[408010570,1773022238703,-500.0,0.0001482,2]
[408010571,1773022238718,-500.0,0.0001482,2]
[408010572,1773022238728,-500.0,0.0001482,2]
[408010573,1773022238738,-500.0,0.0001482,2]
[408010574,1773022238750,-500.0,0.0001482,2]
[408010575,1773022238759,-500.0,0.0001482,2]
[408010576,1773022238768,-500.0,0.0001482,2]
[408010577,1773022238778,-500.0,0.0001482,2]
[408010578,1773022238787,-268.95737779,0.0001482,2]
[408010579,1773022238797,-500.0,0.0001482,2]
[408010580,1773022238806,-500.0,0.0001482,2]
[408010581,1773022238815,-500.0,0.0001482,2]
[408010582,1773022238825,-500.0,0.0001482,2]
[408010583,1773022238834,-500.0,0.0001482,2]
[408010584,1773022238843,-500.0,0.0001482,2]
[408010585,1773022238853,-500.0,0.0001482,2]
[408010586,1773022238862,-500.0,0.0001482,2]
[408010587,1773022238871,-500.0,0.0001482,2]
[408010588,1773022238880,-500.0,0.0001482,2]
[408010589,1773022238890,-500.0,0.0001482,2]
[408010590,1773022238899,-500.0,0.0001482,2]
[408010591,1773022238908,-500.0,0.0001482,2]
[408010592,1773022238917,-500.0,0.0001482,2]
[408010593,1773022238926,-500.0,0.0001482,2]
[408010594,1773022238936,-500.0,0.0001482,2]
[408010595,1773022238945,-500.0,0.0001482,2]
[408010596,1773022238954,-500.0,0.0001482,2]
[408010597,1773022238963,-500.0,0.0001482,2]
[408010598,1773022238972,-500.0,0.0001482,2]
[408010599,1773022238981,-500.0,0.0001482,2]
[408010600,1773022238990,-500.0,0.0001482,2]
[408010601,1773022238999,-500.0,0.0001482,2]
[408010602,1773022239008,-500.0,0.0001482,2]
[408010603,1773022239017,-500.0,0.0001482,2]
[408010604,1773022239026,-500.0,0.0001482,2]
[408010605,1773022239035,-500.0,0.0001482,2]
[408010606,1773022239044,-500.0,0.0001482,2]